[Event "28th CRO-chT 1B-Men 2019"]
[Site "Mali Losinj"]
[Date "2019.10.04"]
[Round "7.3"]
[White "Stojanovski, Dejan"]
[Black "Matkovic, Tonci"]
[Result "1-0"]
[ECO "C77"]
[WhiteElo "2428"]
[BlackElo "2281"]
[Annotator "NA"]
[PlyCount "137"]
[EventDate "2019.09.28"]
[EventType "team-tourn"]
[EventCountry "CRO"]
[SourceTitle "playchess.com"]
[Source "ChessBase"]
[SourceQuality "1"]
[TimeControl "40/5400+30:1800+30"]

1. e4 {[%emt 0:00:30]} e5 {[%emt 0:00:30]} 2. Nf3 {[%emt 0:00:00]} Nc6 {[%emt 0:00:00]} 3. Bb5 {[%emt 0:00:00]} a6 {[%emt 0:00:00]} 4. Ba4 {[%emt 0:00:00]} Nf6 {[%emt 0:00:30]} 5. Nc3 {[%emt 0:00:00]} b5 {[%emt 0:03:30]} 6. Bb3 {[%emt 0:00:30]} Be7 {[%emt 0:00:30]} 7. d3 {[%emt 0:00:30]} d6 {[%emt 0:00:00]} 8. a3 {[%emt 0:00:30]} Be6 {[%emt 0:06:00]} 9. Nd5 {[%emt 0:07:30]} Bxd5 {[%emt 0:03:30]} 10. exd5 {[%emt 0:00:00]} Nd4 {[%emt 0:00:00]} 11. Nxd4 {[%emt 0:13:00]} exd4 {[%emt 0:00:00]} 12. O-O {[%emt 0:00:30]} O-O {[%emt 0:12:30]} 13. c3 {[%emt 0:01:30]} dxc3 {[%emt 0:03:30]} 14. bxc3 {[%emt 0:00:30]} Re8 {[%emt 0:00:30]} 15. d4 {[%emt 0:11:30]} Qd7 {[%emt 0:06:30]} 16. Qd3 {[%emt 0:00:30]} Qg4 {[%emt 0:07:30]} 17. f3 {[%emt 0:08:30]} Qd7 {[%emt 0:21:30]} 18. a4 {[%emt 0:02:30]} c6 {[%emt 0:07:30]} 19. dxc6 {[%emt 0:02:30]} Qxc6 {[%emt 0:00:30]} 20. Re1 {[%emt 0:02:30]} Bf8 {[%emt 0:01:30]} 21. Bd2 {[%emt 0:08:30]} Rxe1+ {[%emt 0:01:30]} 22. Bxe1 {[%emt 0:00:30]} Re8 {[%emt 0:03:30]} 23. Bd2 {[%emt 0:02:30]} h6 {[%emt 0:00:30]} 24. axb5 {[%emt 0:03:30]} axb5 {[%emt 0:02:07]} 25. Ra5 {[%emt 0:01:30]} Rb8 {[%emt 0:00:49]} 26. Ra7 {[%emt 0:01:30]} d5 {[%emt 0:00:19]} 27. Bf4 {[%emt 0:00:30]} Ra8 {[%emt 0:00:43]} 28. Rxa8 {[%emt 0:00:30]} Qxa8 {[%emt 0:00:12]} 29. Be5 {[%emt 0:03:30]} Nd7 {[%emt 0:09:09]} 30. Bc7 {[%emt 0:09:30]} Qa1+ {[%emt 0:01:10]} 31. Kf2 {[%emt 0:00:00]} Qb2+ {[%emt 0:00:04]} 32. Qc2 {[%emt 0:00:00]} Qxc2+ {[%emt 0:00:56]} 33. Bxc2 {[%emt 0:00:30]} b4 {[%emt 0:00:10]} 34. cxb4 {[%emt 0:00:30]} Bxb4 {[%emt 0:00:37]} 35. Bb3 {[%emt 0:00:30]} Bc3 {[%emt 0:02:25]} 36. Ke3 {[%emt 0:00:30]} Nf6 {[%emt 0:00:24]} 37. g4 {[%emt 0:00:00]} Bb2 {[%emt 0:01:49]} 38. h4 {[%emt 0:00:00]} g5 {[%emt 0:01:36]} 39. h5 {[%emt 0:00:30]} Ba3 {[%emt 0:02:07]} 40. Bd8 {[%emt 0:00:00]} Kg7 {[%emt 0:00:00]} 41. Kd3 {[%emt 0:01:00]} Bd6 {[%emt 0:03:23]} 42. Kc3 {[%emt 0:01:30]} Ba3 {[%emt 0:06:30]} 43. Ba2 {[%emt 0:03:30]} Bd6 {[%emt 0:00:30]} 44. Kc2 {[%emt 0:00:30]} Bf8 {[%emt 0:14:53]} 45. Kb3 {[%emt 0:14:30]} Ng8 {[%emt 0:01:23]} 46. Ka4 {[%emt 0:00:30]} Be7 {[%emt 0:00:25]} 47. Bb6 {[%emt 0:00:30]} f5 {[%emt 0:02:50]} 48. Bxd5 {[%emt 0:00:30]} Nf6 {[%emt 0:00:45]} 49. Be6 {[%emt 0:00:30]} fxg4 {[%emt 0:00:08]} 50. fxg4 {[%emt 0:00:30]} Ne4 {[%emt 0:00:21]} 51. Kb5 {[%emt 0:00:30]} Kf6 {[%emt 0:00:10]} 52. Bd7 {[%emt 0:00:30]} Bd6 {[%emt 0:01:29]} 53. Kc6 {[%emt 0:00:30]} Bf4 {[%emt 0:00:06]} 54. Bd8+ {[%emt 0:00:30]} Kf7 {[%emt 0:00:11]} 55. d5 {[%emt 0:00:30]} Be5 {[%emt 0:00:40]} 56. Bf5 {[%emt 0:01:30]} Nd6 {[%emt 0:00:19]} 57. Bg6+ {[%emt 0:00:00]} Kf8 {[%emt 0:00:18]} 58. Kd7 {[%emt 0:00:00]} Nc4 {[%emt 0:01:44]} 59. Ke6 {[%emt 0:00:30]} Bd6 {[%emt 0:00:40]} 60. Bf6 {[%emt 0:02:30]} Bc5 {[%emt 0:02:23]} 61. Bf5 {[%emt 0:03:30]} Nb6 {[%emt 0:02:05]} 62. d6 {[%emt 0:00:30]} Be3 {[%emt 0:00:09]} 63. d7 {[%emt 0:00:30]} Nxd7 {[%emt 0:00:10]} 64. Kxd7 {[%emt 0:00:30]} Bd2 {[%emt 0:00:24]} 65. Bd4 {[%emt 0:00:00]} Kf7 {[%emt 0:00:57]} 66. Bd3 {[%emt 0:00:00]} Bb4 {[%emt 0:01:34]} 67. Bc4+ {[%emt 0:00:00]} Kf8 {[%emt 0:00:04]} 68. Ke6 {[%emt 0:00:00]} Kg8 {[%emt 0:00:03]} 69. Kf6+ {[%emt 0:00:00]} 1-0

[Event "28th CRO-chT 1B-Men 2019"]
[Site "Mali Losinj"]
[Date "2019.10.04"]
[Round "7.4"]
[White "Vlaic, Branko"]
[Black "Bosnjak, Petar"]
[Result "0-1"]
[ECO "D02"]
[WhiteElo "2270"]
[BlackElo "2265"]
[Annotator "NA"]
[PlyCount "128"]
[EventDate "2019.09.28"]
[EventType "team-tourn"]
[EventCountry "CRO"]
[SourceTitle "playchess.com"]
[Source "ChessBase"]
[SourceQuality "1"]
[TimeControl "40/5400+30:1800+30"]

1. d4 {[%emt 0:00:30]} Nf6 {[%emt 0:00:30]} 2. Nf3 {[%emt 0:00:00]} d5 {[%emt 0:00:00]} 3. Bf4 {[%emt 0:00:00]} c5 {[%emt 0:00:00]} 4. e3 {[%emt 0:00:30]} Nc6 {[%emt 0:00:00]} 5. Nbd2 {[%emt 0:00:30]} e6 {[%emt 0:00:00]} 6. c3 {[%emt 0:01:30]} cxd4 {[%emt 0:00:30]} 7. exd4 {[%emt 0:00:30]} Nh5 {[%emt 0:00:00]} 8. Be3 {[%emt 0:00:30]} Bd6 {[%emt 0:00:00]} 9. Ne5 {[%emt 0:00:30]} g6 {[%emt 0:00:30]} 10. Nd3 {[%emt 0:00:30]} f6 {[%emt 0:09:30]} 11. f4 {[%emt 0:10:30]} Qe7 {[%emt 0:13:30]} 12. Nf3 {[%emt 0:03:30]} Qc7 {[%emt 0:19:30]} 13. g3 {[%emt 0:03:30]} Bd7 {[%emt 0:00:30]} 14. Bg2 {[%emt 0:00:00]} O-O {[%emt 0:05:30]} 15. O-O {[%emt 0:01:00]} Na5 {[%emt 0:01:30]} 16. a4 {[%emt 0:07:30]} b6 {[%emt 0:02:30]} 17. Re1 {[%emt 0:01:30]} Rac8 {[%emt 0:01:30]} 18. Bf2 {[%emt 0:04:30]} Rce8 {[%emt 0:03:30]} 19. Re2 {[%emt 0:02:30]} Bc8 {[%emt 0:04:30]} 20. Nb4 {[%emt 0:09:30]} Nc4 {[%emt 0:02:30]} 21. Be1 {[%emt 0:03:30]} Be7 {[%emt 0:14:30]} 22. Rc1 {[%emt 0:06:30]} a5 {[%emt 0:04:41]} 23. Nd3 {[%emt 0:00:30]} Nd6 {[%emt 0:00:14]} 24. Bh3 {[%emt 0:01:30]} f5 {[%emt 0:04:26]} 25. Nfe5 {[%emt 0:03:30]} Nf6 {[%emt 0:00:29]} 26. Bf2 {[%emt 0:02:30]} Rd8 {[%emt 0:01:14]} 27. Be3 {[%emt 0:01:30]} Nc4 {[%emt 0:03:37]} 28. Nxc4 {[%emt 0:02:30]} dxc4 {[%emt 0:00:32]} 29. Ne5 {[%emt 0:00:30]} Bd6 {[%emt 0:01:34]} 30. Qe1 {[%emt 0:02:30]} Bb7 {[%emt 0:00:00]} 31. Ra1 {[%emt 0:25:58]} Ba8 {[%emt 0:00:00]} 32. Bc1 {[%emt 0:01:41]} Bxe5 {[%emt 0:00:00]} 33. dxe5 {[%emt 0:00:08]} Ne4 {[%emt 0:00:00]} 34. Be3 {[%emt 0:01:10]} Rd7 {[%emt 0:00:00]} 35. Bg2 {[%emt 0:00:32]} Rfd8 {[%emt 0:00:00]} 36. Bxe4 {[%emt 0:00:06]} Bxe4 {[%emt 0:00:00]} 37. Bd4 {[%emt 0:01:28]} Ba8 {[%emt 0:00:00]} 38. h4 {[%emt 0:02:06]} Qc6 {[%emt 0:00:00]} 39. Rh2 {[%emt 0:00:00]} Rb8 {[%emt 0:00:00]} 40. Qe2 {[%emt 0:00:00]} Qd5 {[%emt 0:00:00]} 41. Ra2 {[%emt 0:04:21]} b5 {[%emt 0:00:00]} 42. axb5 {[%emt 0:00:30]} Qxb5 {[%emt 0:00:00]} 43. Qc2 {[%emt 0:05:30]} Rbd8 {[%emt 0:00:00]} 44. Qa4 {[%emt 0:00:30]} Qd5 {[%emt 0:00:00]} 45. Qd1 {[%emt 0:03:30]} Bc6 {[%emt 0:00:00]} 46. Qe2 {[%emt 0:01:30]} h6 {[%emt 0:00:00]} 47. Ra1 {[%emt 0:00:30]} a4 {[%emt 0:00:13]} 48. Kf2 {[%emt 0:00:30]} Rb7 {[%emt 0:03:30]} 49. Ra2 {[%emt 0:00:30]} Rdb8 {[%emt 0:01:30]} 50. h5 {[%emt 0:01:28]} g5 {[%emt 0:00:30]} 51. fxg5 {[%emt 0:00:30]} hxg5 {[%emt 0:00:30]} 52. h6 {[%emt 0:03:34]} Kh7 {[%emt 0:00:30]} 53. Kg1 {[%emt 0:01:31]} Rg8 {[%emt 0:00:30]} 54. g4 {[%emt 0:00:43]} Rf7 {[%emt 0:00:30]} 55. Ra1 {[%emt 0:04:57]} fxg4 {[%emt 0:00:30]} 56. Qxg4 {[%emt 0:01:14]} Rf4 {[%emt 0:02:30]} 57. Qg2 {[%emt 0:02:02]} Qxg2+ {[%emt 0:00:00]} 58. Rxg2 {[%emt 0:00:33]} Bxg2 {[%emt 0:00:00]} 59. Kxg2 {[%emt 0:00:08]} Ra8 {[%emt 0:01:30]} 60. Rh1 {[%emt 0:02:51]} Rh4 {[%emt 0:00:00]} 61. Rf1 {[%emt 0:00:30]} Rg4+ {[%emt 0:00:00]} 62. Kh3 {[%emt 0:00:30]} Rf4 {[%emt 0:00:30]} 63. Rg1 {[%emt 0:00:00]} Kxh6 {[%emt 0:00:30]} 64. Be3 {[%emt 0:00:23]} Rf3+ {[%emt 0:00:30]} 0-1

[Event "28th CRO-chT 1B-Men 2019"]
[Site "Mali Losinj"]
[Date "2019.10.04"]
[Round "7.5"]
[White "Pucovski, Miroslav"]
[Black "Malenica, Mario"]
[Result "1/2-1/2"]
[ECO "B07"]
[WhiteElo "2238"]
[BlackElo "2221"]
[Annotator "NA"]
[PlyCount "38"]
[EventDate "2019.09.28"]
[EventType "team-tourn"]
[EventCountry "CRO"]
[SourceTitle "playchess.com"]
[Source "ChessBase"]
[SourceQuality "1"]
[TimeControl "40/5400+30:1800+30"]

1. e4 {[%emt 0:00:30]} d6 {[%emt 0:00:30]} 2. d4 {[%emt 0:00:00]} Nf6 {[%emt 0:00:00]} 3. Bd3 {[%emt 0:00:00]} g6 {[%emt 0:00:00]} 4. c3 {[%emt 0:00:00]} Bg7 {[%emt 0:00:30]} 5. Nf3 {[%emt 0:00:00]} O-O {[%emt 0:00:30]} 6. O-O {[%emt 0:00:30]} c5 {[%emt 0:01:30]} 7. h3 {[%emt 0:00:30]} Nfd7 {[%emt 0:05:30]} 8. d5 {[%emt 0:12:30]} Nf6 {[%emt 0:04:30]} 9. Re1 {[%emt 0:02:30]} e5 {[%emt 0:04:30]} 10. dxe6 {[%emt 0:06:30]} Bxe6 {[%emt 0:00:00]} 11. Ng5 {[%emt 0:00:00]} Bc8 {[%emt 0:04:00]} 12. Bc4 {[%emt 0:07:00]} Nc6 {[%emt 0:03:30]} 13. Bf4 {[%emt 0:14:30]} Na5 {[%emt 0:23:30]} 14. Bf1 {[%emt 0:09:30]} h6 {[%emt 0:02:30]} 15. Nf3 {[%emt 0:00:00]} d5 {[%emt 0:01:30]} 16. exd5 {[%emt 0:05:00]} Nxd5 {[%emt 0:01:30]} 17. Be5 {[%emt 0:00:30]} Be6 {[%emt 0:04:30]} 18. Nbd2 {[%emt 0:11:30]} b6 {[%emt 0:07:30]} 19. Nc4 {[%emt 0:08:30]} Nc6 {[%emt 0:06:30]} 1/2-1/2

[Event "28th CRO-chT 1B-Men 2019"]
[Site "Mali Losinj"]
[Date "2019.10.04"]
[Round "7.6"]
[White "Grgurevic, Boris"]
[Black "Bubalovic, Davorin"]
[Result "0-1"]
[ECO "B20"]
[WhiteElo "2177"]
[BlackElo "2212"]
[Annotator "NA"]
[PlyCount "78"]
[EventDate "2019.09.28"]
[EventType "team-tourn"]
[EventCountry "CRO"]
[SourceTitle "playchess.com"]
[Source "ChessBase"]
[SourceQuality "1"]
[TimeControl "40/5400+30:1800+30"]

1. e4 {[%emt 0:01:30]} c5 {[%emt 0:00:30]} 2. b3 {[%emt 0:00:30]} Nc6 {[%emt 0:00:00]} 3. Nc3 {[%emt 0:00:00]} g6 {[%emt 0:00:00]} 4. Bb2 {[%emt 0:00:00]} e5 {[%emt 0:01:30]} 5. Nf3 {[%emt 0:05:30]} Bg7 {[%emt 0:00:30]} 6. Bc4 {[%emt 0:01:30]} d6 {[%emt 0:03:30]} 7. O-O {[%emt 0:10:30]} Nf6 {[%emt 0:01:30]} 8. Re1 {[%emt 0:01:30]} O-O {[%emt 0:00:30]} 9. Nd5 {[%emt 0:00:30]} Be6 {[%emt 0:09:30]} 10. Nxf6+ {[%emt 0:04:30]} Qxf6 {[%emt 0:00:30]} 11. Bxe6 {[%emt 0:02:30]} Qxe6 {[%emt 0:00:30]} 12. Qe2 {[%emt 0:08:30]} Rfe8 {[%emt 0:03:30]} 13. c3 {[%emt 0:13:30]} d5 {[%emt 0:05:30]} 14. d3 {[%emt 0:07:30]} d4 {[%emt 0:07:30]} 15. c4 {[%emt 0:05:30]} a5 {[%emt 0:01:30]} 16. Bc1 {[%emt 0:01:30]} Bf6 {[%emt 0:04:30]} 17. Bd2 {[%emt 0:02:30]} Reb8 {[%emt 0:03:30]} 18. Reb1 {[%emt 0:02:30]} b5 {[%emt 0:05:30]} 19. cxb5 {[%emt 0:07:30]} Rxb5 {[%emt 0:00:30]} 20. Be1 {[%emt 0:00:00]} a4 {[%emt 0:07:30]} 21. Nd2 {[%emt 0:04:44]} Bg5 {[%emt 0:04:30]} 22. Nc4 {[%emt 0:00:01]} axb3 {[%emt 0:05:30]} 23. a4 {[%emt 0:02:20]} Rbb8 {[%emt 0:00:30]} 24. Qd1 {[%emt 0:00:46]} b2 {[%emt 0:01:30]} 25. Rxb2 {[%emt 0:02:20]} Rxb2 {[%emt 0:02:30]} 26. Nxb2 {[%emt 0:00:05]} f5 {[%emt 0:00:30]} 27. f3 {[%emt 0:00:14]} Be3+ {[%emt 0:00:30]} 28. Kh1 {[%emt 0:01:45]} fxe4 {[%emt 0:00:00]} 29. fxe4 {[%emt 0:00:15]} Rf8 {[%emt 0:07:00]} 30. Bd2 {[%emt 0:00:27]} Rf2 {[%emt 0:04:44]} 31. Nc4 {[%emt 0:01:05]} Bxd2 {[%emt 0:02:32]} 32. Nxd2 {[%emt 0:00:06]} Nb4 {[%emt 0:00:16]} 33. Nc4 {[%emt 0:04:56]} Nc2 {[%emt 0:04:44]} 34. Rc1 {[%emt 0:00:52]} Ne3 {[%emt 0:00:20]} 35. Nxe3 {[%emt 0:07:36]} dxe3 {[%emt 0:00:02]} 36. Qe1 {[%emt 0:00:18]} Qg4 {[%emt 0:02:05]} 37. Qg1 {[%emt 0:00:00]} Qf4 {[%emt 0:00:12]} 38. a5 {[%emt 0:02:14]} e2 {[%emt 0:00:16]} 39. a6 {[%emt 0:00:00]} Qxc1 {[%emt 0:00:00]} 0-1

[Event "28th CRO-chT 1B-Men 2019"]
[Site "Mali Losinj"]
[Date "2019.10.04"]
[Round "7.7"]
[White "Ruck, Robert"]
[Black "Lenic, Luka"]
[Result "1/2-1/2"]
[ECO "D41"]
[WhiteElo "2530"]
[BlackElo "2644"]
[Annotator "ChessBase"]
[PlyCount "68"]
[EventDate "2019.09.28"]
[EventType "team-tourn"]
[EventCountry "CRO"]
[SourceTitle "playchess.com"]
[Source "ChessBase"]
[SourceQuality "1"]
[TimeControl "40/5400+30:1800+30"]

1. Nf3 {[%emt 0:00:30]} Nf6 {[%emt 0:00:30]} 2. c4 {[%emt 0:00:00]} c5 {[%emt 0:00:30]} 3. Nc3 {[%emt 0:00:00]} d5 {[%emt 0:00:00]} 4. cxd5 {[%emt 0:00:00]} Nxd5 {[%emt 0:00:00]} 5. d4 {[%emt 0:00:00]} e6 {[%emt 0:00:00]} 6. g3 {[%emt 0:04:30]} cxd4 {[%emt 0:01:00]} 7. Nxd5 {[%emt 0:00:00]} Qxd5 {[%emt 0:00:30]} 8. Qxd4 {[%emt 0:00:00]} Qb5 {[%emt 0:00:00]} 9. e4 {[%emt 0:00:30]} Qb4+ {[%emt 0:00:00]} 10. Bd2 {[%emt 0:00:30]} Nc6 {[%emt 0:00:00]} 11. Qxb4 {[%emt 0:00:30]} Bxb4 {[%emt 0:00:00]} 12. Bb5 {[%emt 0:00:30]} Bd7 {[%emt 0:00:00]} 13. Rc1 {[%emt 0:14:30]} Bxd2+ {[%emt 0:04:00]} 14. Kxd2 {[%emt 0:00:30]} Ke7 {[%emt 0:00:30]} 15. Rc5 {[%emt 0:12:30]} f6 {[%emt 0:11:30]} 16. Bxc6 {[%emt 0:18:30]} Bxc6 {[%emt 0:00:30]} 17. Nd4 {[%emt 0:00:30]} Bd7 {[%emt 0:20:30]} 18. Rc7 {[%emt 0:30:35]} Rab8 {[%emt 0:02:30]} 19. Rhc1 {[%emt 0:03:26]} Rhc8 {[%emt 0:04:30]} 20. Ke3 {[%emt 0:03:25]} Rxc7 {[%emt 0:03:30]} 21. Rxc7 {[%emt 0:00:13]} e5 {[%emt 0:03:30]} 22. Ne2 {[%emt 0:02:36]} Kd6 {[%emt 0:02:30]} 23. Rc1 {[%emt 0:00:20]} Bc6 {[%emt 0:01:30]} 24. Nc3 {[%emt 0:00:35]} g6 {[%emt 0:04:30]} 25. Rd1+ {[%emt 0:00:58]} Ke6 {[%emt 0:01:30]} 26. f3 {[%emt 0:03:28]} Rc8 {[%emt 0:03:30]} 27. Rd2 {[%emt 0:01:15]} h5 {[%emt 0:01:30]} 28. Rd1 {[%emt 0:00:14]} f5 {[%emt 0:04:30]} 29. h4 {[%emt 0:02:29]} Rf8 {[%emt 0:01:30]} 30. Rd2 {[%emt 0:00:12]} Rg8 {[%emt 0:01:30]} 31. Rd1 {[%emt 0:00:55]} Rc8 {[%emt 0:06:30]} 32. Rd2 {[%emt 0:00:07]} Bd7 {[%emt 0:02:30]} 33. Rd1 {[%emt 0:01:08]} Rc4 {[%emt 0:01:35]} 34. Rd2 {[%emt 0:00:30]} Rc8 {[%emt 0:04:24]} 1/2-1/2

[Event "28th CRO-chT 1B-Men 2019"]
[Site "Mali Losinj"]
[Date "2019.10.04"]
[Round "7.8"]
[White "Postny, Evgeny"]
[Black "Horvath, Adam"]
[Result "1-0"]
[ECO "E11"]
[WhiteElo "2597"]
[BlackElo "2489"]
[Annotator "ChessBase"]
[PlyCount "139"]
[EventDate "2019.09.28"]
[EventType "team-tourn"]
[EventCountry "CRO"]
[SourceTitle "playchess.com"]
[Source "ChessBase"]
[SourceQuality "1"]
[TimeControl "40/5400+30:1800+30"]

1. d4 {[%emt 0:00:30]} Nf6 {[%emt 0:00:30]} 2. Nf3 {[%emt 0:00:30]} e6 {[%emt 0:00:30]} 3. c4 {[%emt 0:00:30]} Bb4+ {[%emt 0:00:00]} 4. Nbd2 {[%emt 0:00:00]} O-O {[%emt 0:00:00]} 5. a3 {[%emt 0:00:00]} Be7 {[%emt 0:00:30]} 6. e4 {[%emt 0:00:30]} d6 {[%emt 0:00:00]} 7. Be2 {[%emt 0:00:00]} Nfd7 {[%emt 0:01:00]} 8. b3 {[%emt 0:04:00]} e5 {[%emt 0:01:30]} 9. d5 {[%emt 0:01:30]} a5 {[%emt 0:03:30]} 10. O-O {[%emt 0:02:30]} Nc5 {[%emt 0:06:30]} 11. Ne1 {[%emt 0:15:30]} Bg5 {[%emt 0:04:30]} 12. Bd3 {[%emt 0:04:30]} c6 {[%emt 0:23:30]} 13. Bc2 {[%emt 0:05:30]} Bd7 {[%emt 0:18:30]} 14. Nef3 {[%emt 0:11:30]} Bh6 {[%emt 0:01:30]} 15. Bb2 {[%emt 0:01:30]} Bg4 {[%emt 0:12:30]} 16. h3 {[%emt 0:04:30]} Bh5 {[%emt 0:00:00]} 17. Qb1 {[%emt 0:04:30]} Nca6 {[%emt 0:05:59]} 18. Bc3 {[%emt 0:07:30]} c5 {[%emt 0:00:31]} 19. Bd1 {[%emt 0:00:30]} Bg6 {[%emt 0:02:38]} 20. Nh2 {[%emt 0:06:30]} Nc7 {[%emt 0:06:05]} 21. Ndf3 {[%emt 0:04:30]} Nd7 {[%emt 0:01:28]} 22. Ng4 {[%emt 0:01:30]} Bg5 {[%emt 0:00:06]} 23. Nxg5 {[%emt 0:02:30]} Qxg5 {[%emt 0:00:05]} 24. Bc2 {[%emt 0:06:57]} b5 {[%emt 0:02:01]} 25. Qe1 {[%emt 0:01:34]} b4 {[%emt 0:01:57]} 26. Bd2 {[%emt 0:00:07]} Qd8 {[%emt 0:00:26]} 27. Ne3 {[%emt 0:01:04]} Nf6 {[%emt 0:04:13]} 28. f3 {[%emt 0:00:17]} Kh8 {[%emt 0:01:58]} 29. Kh2 {[%emt 0:00:54]} Ng8 {[%emt 0:00:19]} 30. g3 {[%emt 0:00:49]} h6 {[%emt 0:01:54]} 31. Qf2 {[%emt 0:03:43]} Re8 {[%emt 0:00:27]} 32. a4 {[%emt 0:01:14]} Na6 {[%emt 0:00:19]} 33. Rae1 {[%emt 0:00:21]} Nb8 {[%emt 0:00:10]} 34. Qg2 {[%emt 0:02:46]} Nf6 {[%emt 0:00:24]} 35. Nd1 {[%emt 0:00:22]} Nh7 {[%emt 0:01:00]} 36. f4 {[%emt 0:01:21]} f6 {[%emt 0:00:05]} 37. Nf2 {[%emt 0:01:38]} Kg8 {[%emt 0:00:14]} 38. Bd1 {[%emt 0:01:12]} Ra7 {[%emt 0:00:16]} 39. Bg4 {[%emt 0:00:32]} Bf7 {[%emt 0:00:47]} 40. Nd1 {[%emt 0:00:00]} Rae7 {[%emt 0:00:00]} 41. Ne3 {[%emt 0:07:09]} g6 {[%emt 0:13:11]} 42. Be6 {[%emt 0:07:30]} Bxe6 {[%emt 0:02:07]} 43. dxe6 {[%emt 0:00:30]} Rxe6 {[%emt 0:00:04]} 44. f5 {[%emt 0:00:30]} gxf5 {[%emt 0:00:03]} 45. exf5 {[%emt 0:01:30]} R6e7 {[%emt 0:00:11]} 46. Nd5 {[%emt 0:01:24]} Rf7 {[%emt 0:01:48]} 47. Bxh6 {[%emt 0:00:20]} Kh8 {[%emt 0:01:28]} 48. g4 {[%emt 0:05:44]} Rg8 {[%emt 0:00:08]} 49. Re3 {[%emt 0:01:13]} Nc6 {[%emt 0:00:20]} 50. Rg3 {[%emt 0:01:38]} Nd4 {[%emt 0:00:32]} 51. h4 {[%emt 0:01:09]} Qd7 {[%emt 0:01:48]} 52. Rh1 {[%emt 0:02:29]} Qe8 {[%emt 0:01:52]} 53. Qe4 {[%emt 0:00:17]} Nf8 {[%emt 0:01:39]} 54. Kg2 {[%emt 0:00:37]} Nd7 {[%emt 0:00:14]} 55. Kf2 {[%emt 0:03:16]} Rh7 {[%emt 0:00:35]} 56. Bc1 {[%emt 0:00:06]} Qf7 {[%emt 0:01:29]} 57. Ke1 {[%emt 0:01:09]} Rgg7 {[%emt 0:00:50]} 58. Bd2 {[%emt 0:01:21]} Qg8 {[%emt 0:00:49]} 59. Kf2 {[%emt 0:04:06]} Qf7 {[%emt 0:02:15]} 60. Rhh3 {[%emt 0:00:13]} Rg8 {[%emt 0:00:52]} 61. Ke1 {[%emt 0:00:41]} Rgg7 {[%emt 0:01:29]} 62. Kd1 {[%emt 0:00:11]} Rg8 {[%emt 0:00:04]} 63. Kc1 {[%emt 0:00:12]} Rgg7 {[%emt 0:00:03]} 64. Kb2 {[%emt 0:00:08]} Rg8 {[%emt 0:00:04]} 65. Be3 {[%emt 0:00:44]} Rgg7 {[%emt 0:00:09]} 66. Bxd4 {[%emt 0:01:31]} cxd4 {[%emt 0:00:04]} 67. g5 {[%emt 0:00:16]} Nc5 {[%emt 0:00:35]} 68. Qg2 {[%emt 0:01:10]} Qd7 {[%emt 0:08:05]} 69. Nxf6 {[%emt 0:00:24]} Qxf5 {[%emt 0:00:04]} 70. Qa8+ {[%emt 0:00:04]} 1-0

[Event "28th CRO-chT 1B-Men 2019"]
[Site "Mali Losinj"]
[Date "2019.10.04"]
[Round "7.9"]
[White "Dabo-Peranic, Robert"]
[Black "Jovanovic, Zoran"]
[Result "0-1"]
[ECO "C41"]
[WhiteElo "2323"]
[BlackElo "2507"]
[Annotator "ChessBase"]
[PlyCount "74"]
[EventDate "2019.09.28"]
[EventType "team-tourn"]
[EventCountry "CRO"]
[SourceTitle "playchess.com"]
[Source "ChessBase"]
[SourceQuality "1"]
[TimeControl "40/5400+30:1800+30"]

1. e4 {[%emt 0:00:30]} d6 {[%emt 0:05:30]} 2. d4 {[%emt 0:00:00]} Nf6 {[%emt 0:00:30]} 3. Nc3 {[%emt 0:00:00]} e5 {[%emt 0:00:00]} 4. Nf3 {[%emt 0:00:00]} Nbd7 {[%emt 0:00:00]} 5. Bc4 {[%emt 0:00:00]} Be7 {[%emt 0:00:00]} 6. O-O {[%emt 0:00:30]} O-O {[%emt 0:00:00]} 7. a4 {[%emt 0:00:00]} c6 {[%emt 0:03:30]} 8. Ba2 {[%emt 0:00:00]} h6 {[%emt 0:00:30]} 9. Nh4 {[%emt 0:09:30]} Re8 {[%emt 0:31:30]} 10. Ng6 {[%emt 0:00:30]} exd4 {[%emt 0:01:30]} 11. Qxd4 {[%emt 0:03:30]} Ne5 {[%emt 0:03:30]} 12. Nxe7+ {[%emt 0:01:30]} Qxe7 {[%emt 0:00:00]} 13. Rd1 {[%emt 0:01:30]} Bg4 {[%emt 0:03:00]} 14. Re1 {[%emt 0:16:30]} Be6 {[%emt 0:08:30]} 15. Bxe6 {[%emt 0:15:30]} Qxe6 {[%emt 0:01:30]} 16. Bf4 {[%emt 0:02:30]} Nh5 {[%emt 0:01:30]} 17. Bg3 {[%emt 0:00:30]} Nxg3 {[%emt 0:03:30]} 18. hxg3 {[%emt 0:00:30]} a6 {[%emt 0:00:30]} 19. a5 {[%emt 0:02:30]} Rad8 {[%emt 0:00:30]} 20. Qb4 {[%emt 0:05:30]} Qe7 {[%emt 0:04:30]} 21. Rad1 {[%emt 0:00:30]} h5 {[%emt 0:00:30]} 22. Re3 {[%emt 0:05:30]} Rd7 {[%emt 0:03:30]} 23. Ne2 {[%emt 0:00:30]} Ng4 {[%emt 0:00:30]} 24. Red3 {[%emt 0:02:30]} d5 {[%emt 0:03:30]} 25. Qxe7 {[%emt 0:00:30]} Rdxe7 {[%emt 0:00:30]} 26. Nc3 {[%emt 0:02:30]} f5 {[%emt 0:00:30]} 27. Rd4 {[%emt 0:03:30]} fxe4 {[%emt 0:01:30]} 28. Rb4 {[%emt 0:00:00]} Rf7 {[%emt 0:00:30]} 29. Rf1 {[%emt 0:01:00]} Ref8 {[%emt 0:00:00]} 30. f3 {[%emt 0:00:30]} exf3 {[%emt 0:02:00]} 31. Rxf3 {[%emt 0:00:30]} Rxf3 {[%emt 0:00:00]} 32. gxf3 {[%emt 0:00:30]} Rxf3 {[%emt 0:00:00]} 33. Rxb7 {[%emt 0:00:30]} Rxg3+ {[%emt 0:00:30]} 34. Kh1 {[%emt 0:01:30]} h4 {[%emt 0:01:30]} 35. Rb4 {[%emt 0:00:30]} h3 {[%emt 0:00:30]} 36. Rf4 {[%emt 0:00:30]} Kh7 {[%emt 0:03:17]} 37. Ne2 {[%emt 0:00:30]} Rg2 {[%emt 0:00:06]} 0-1